Cogmind - Beta 16 @@@ ROGUE MODE // 2026.02.07 @ 10:17:36 Player: Bikerider58 Result: Destroyed by D-53 Grenadier with Mini Grenade Launcher Performance ------------- Evolutions (0) 0 Regions Visited (2) 400 Robots Destroyed (31) 155 Value Destroyed (519) 519 Prototype IDs (0) 0 Alien Tech Used (0) 0 Bonus (0) 0 TOTAL SCORE: 1074 Bonus ------- None Cogmind --------- Core Integrity 0/250 Matter 300/300 Energy 250/250 System Corruption 0% Temperature Cool (0) Movement Treading (240) Ox1 Location -10/Mines Parts ------- > --- POWER (1) -------- Ion Engine > --- PROPULSION (2) --- Improved Treads > --- UTILITY (2) ------ Large Storage Unit Seismic Detector > --- WEAPON (2) ------- (None) > --- INVENTORY (15) --- Ion Engine Light Treads Light Treads Improved Treads Improved Treads Improved Treads Improved Treads Improved Treads Improved Treads Heat Sink Experimental Sensor Array Beam Rifle Assault Rifle Rocket Launcher Mini Grenade Launcher Peak State ------------ > --- POWER ------------ Ion Engine > --- PROPULSION ------- Improved Treads Improved Treads > --- UTILITY ---------- Large Storage Unit Seismic Detector > --- WEAPON ----------- Beam Rifle Beam Rifle > --- INVENTORY -------- Ion Engine Light Treads Light Treads Improved Treads Improved Treads Improved Treads Improved Treads Improved Treads Improved Treads Heat Sink Experimental Sensor Array Beam Rifle Assault Rifle Rocket Launcher Mini Grenade Launcher [Rating: 14] Favorites ----------- Power Ion Engine Engine Ion Engine Propulsion Improved Treads Treads Improved Treads Utility Seismic Detector Device Seismic Detector Storage Large Storage Unit Weapon Beam Rifle Energy Gun Beam Rifle Ballistic Gun Light Assault Rifle Build | -11 -10 -10 ------- Run | Yrd Mat Min Slots Evolved . | . . . Power . | . . . Propulsion . | . . . Utility . | . . . Weapon . | . . . Parts Attached 19 | 7 11 1 Power 3 | 1 2 . Engine 3 | 1 2 . Core . | . . . Reactor . | . . . Propulsion 5 | 2 3 . Treads 5 | 2 3 . Leg . | . . . Wheel . | . . . Hover . | . . . Flight . | . . . Utility 7 | 2 4 1 Device 4 | 1 2 1 Storage 3 | 1 2 . Processor . | . . . Hackware . | . . . Protection . | . . . Artifact . | . . . Weapon 4 | 2 2 . Energy Gun 3 | 1 2 . Energy Cannon . | . . . Ballistic Gun 1 | 1 . . Ballistic Cannon . | . . . Launcher . | . . . Special Weapon . | . . . Impact Weapon . | . . . Slashing Weapon . | . . . Piercing Weapon . | . . . Special Melee Weapon . | . . . Unidentified Prototypes . | . . . Parts Lost 4 | . 1 3 Power . | . . . Propulsion 1 | . . 1 Utility . | . . . Weapon 3 | . 1 2 Highest Loss Streak 3 | . 1 3 To Critical Strikes . | . . . Average Backups 12 | . 12 15 Power . | . . 1 Propulsion 7 | . 7 8 Utility 1 | . 1 2 Weapon 2 | . 2 3 Tool/Special . | . . . Unused Backups 15 | . 2 13 Power 1 | . . 1 Propulsion 7 | . . 7 Utility 2 | . 1 1 Weapon 5 | . 1 4 Tool/Special . | . . . Average Slot Usage (%) 99 | . 100 98 Engine 14 | . 14 14 Treads 27 | . 28 27 Device 14 | . 14 14 Storage 14 | . 14 14 Energy Gun 24 | . 23 26 Ballistic Gun 3 | . 4 . Peak Build Rating 14 | 7 13 14 Average Rating 11 | 5 12 13 On Entrance 6 | . 7 13 Avg Prop Armor Cover (%) . | . . . Naked Turns . | . . . Heaviest Build 32 | 12 32 32 Greatest Support 46 | 40 46 46 Greatest Overweight (x) 1 | . . 1 Average Overweight (x) . | . . . Largest Inventory Capacity 15 | 8 15 15 Average Capacity 13 | 7 13 15 Most Carried 15 | 1 15 15 Average Carried 12 | . 13 15 Final Capacity 15 | 8 15 15 Final Carried 15 | 1 15 15 Class Distribution -------------------- 100% | Mutant Dominant Class ---------------- Mutant | -10/Materials Mutant | -10/Mines Resources | -11 -10 -10 ----------- Run | Yrd Mat Min Matter Collected 524 | 275 239 10 Remotely . | . . . Salvage Created 870 | 107 717 46 Parts 57 | 8 44 5 Haulers Intercepted 2 | . 2 . Recyclers Shooed . | . . . Parts Field Recycled . | . . . Retrieved Matter . | . . . Parts Self-Destructed . | . . . Prevented . | . . . Parts Restored . | . . . Kills | -11 -10 -10 ------- Run | Yrd Mat Min Combat Hostiles Destroyed 18 | . 18 . Guns 18 | . 18 . Classes Destroyed 8 | 2 6 . Worker 1 | . 1 . Tunneler 5 | 3 . 2 Hauler 2 | . 2 . Recycler 1 | 1 . . Operator 1 | . 1 . Watcher 3 | . 3 . Swarmer 9 | . 9 . Grunt 9 | . 9 . Best Kill Streak 4 | 4 3 1 Combat Bots Only 3 | . 3 . Max Kills in Single Turn 1 | 1 1 1 Gunslinging . | . . . Exploded . | . . . Melee . | . . . Uniques/NPCs Destroyed . | . . . Combat | -11 -10 -10 -------- Run | Yrd Mat Min Hostile Shots Fired 85 | . 74 11 Missed 17 | . 17 . Hits 68 | . 57 11 Projectile 68 | . 57 11 AOE 11 | . . 11 Damage Taken 1049 | . 536 513 Core 261 | . 84 177 Absorbed by Shields . | . . . Regen/Repaired (Parts) 131 | . 131 . Core Remaining (%) 100 | 100 . . Volleys Fired 65 | 5 57 3 Largest 2 | 2 2 2 Hottest 112 | 70 112 112 Shots Fired 129 | 10 113 6 Gun 129 | 10 113 6 Cannon . | . . . Launcher . | . . . Special . | . . . Kinetic 30 | 5 25 . Thermal 99 | 5 88 6 Explosive . | . . . Electromagnetic . | . . . Robot Hit Streak 18 | 7 18 6 Robot Miss Streak 8 | . 8 1 Penetration Max . | . . . Secondary Targets 1 | . 1 . Max Gunslinging Chain 1 | . 1 . Shots Hit Robots 74 | 7 63 4 Core Hits 43 | 6 35 2 Critical Kills . | . . . Critical Parts Destroyed . | . . . Critical Strikes 6 | . 5 1 Burn 6 | . 5 1 Melee Attacks . | . . . Impact . | . . . Slashing . | . . . Piercing . | . . . Sneak Attacks . | . . . Combat Hostiles . | . . . Follow-up Attacks . | . . . Damage Inflicted 969 | 70 820 79 Guns 956 | 70 815 71 Cannons . | . . . Explosions . | . . . Melee . | . . . Ramming 13 | . 5 8 Kinetic 185 | 44 141 . Thermal 771 | 26 674 71 Explosive . | . . . Electromagnetic . | . . . Impact . | . . . Slashing . | . . . Piercing . | . . . Highest Corruption . | . . . Average Corruption . | . . . Corruption Purged . | . . . Corruption Blocked . | . . . Overload Shots . | . . . Overflow Damage . | . . . Projectiles . | . . . Explosions . | . . . Melee . | . . . Knockbacks . | . . . Impact . | . . . Kinetic . | . . . Secondary . | . . . Self-Inflicted Damage . | . . . Shots . | . . . Rammed 4 | . 3 1 Targets Rammed 4 | . 3 1 Kicked . | . . . Crushed . | . . . Highest Temperature 370 | 40 370 51 Average Temperature 82 | 20 90 29 Received Heat Transfer 129 | . 129 . Effects 2 | . 2 . Shutdowns 1 | . 1 . Matter Decay 1 | . 1 . Siege Activations . | . . . Martial Activations . | . . . Shielding Activations . | . . . Robots Disrupted . | . . . Combat Hostiles . | . . . Robots Corrupted . | . . . Combat Hostiles . | . . . Parts Fried . | . . . Impact Corruptions . | . . . Robots Melted . | . . . Combat Hostiles . | . . . Parts Melted 5 | . 4 1 Heat Transferred 2442 | 74 2109 259 Parts Sabotaged . | . . . Parts Stolen . | . . . Parts Stripped . | . . . Power Chain Reactions . | . . . Alert | -11 -10 -10 ------- Run | Yrd Mat Min Maximum Alert Level . | . . . Low Security (%) 100 | 100 100 100 Level 1 . | . . . Level 2 . | . . . Level 3 . | . . . Level 4 . | . . . Level 5 . | . . . High Security . | . . . Max Security . | . . . Peak Influence 191 | 10 191 61 Initial 61 | . . 61 Average 67 | 1 90 13 Influence Increases 654 | 20 624 10 Destroy 0b10 Robot/C 360 | . 360 . Destroy 0b10 Robot/NC 65 | 20 35 10 Destroy Leader 90 | . 90 . Successful Hack 31 | . 31 . Select Force Hacks 60 | . 60 . Destroy Structure 3 | . 3 . Lose Combat Pursuer 45 | . 45 . Influence Decreases 654 | 20 467 167 Entered New Map 96 | . . 96 Time Decay 548 | 20 457 71 Lost Part 10 | . 10 . Squads Dispatched 4 | . 4 . Investigation 3 | . 3 . Extermination . | . . . Reinforcement 1 | . 1 . Assault . | . . . Garrison . | . . . Intercept . | . . . Searches Triggered . | . . . Construction Impeded . | . . . Haulers Reinforced . | . . . Active Scanning Responses . | . . . Cargo Convoy Interrupts . | . . . Stealth | -11 -10 -10 --------- Run | Yrd Mat Min Distress Signals 3 | . 3 . Communications Jammed . | . . . Distress Signals . | . . . Times Spotted 34 | . 32 2 Peak Tracking Total 4 | . 4 2 Tactical Retreats 2 | . 2 . Traps | -11 -10 -10 ------- Run | Yrd Mat Min Traps Triggered . | . . . Indirectly . | . . . Trap Hack Attempts . | . . . Triggered . | . . . Disarmed . | . . . Reprogrammed . | . . . Reused . | . . . Traps Extracted . | . . . Installed . | . . . Triggered . | . . . Machines | -11 -10 -10 ---------- Run | Yrd Mat Min Machines Disabled . | . . . Max in Single Turn . | . . . Machines Repaired . | . . . Machines Dismantled . | . . . Machines Sabotaged . | . . . Overloaded Fab Kills . | . . . Hacking | -11 -10 -10 --------- Run | Yrd Mat Min Machines Accessed 10 | . 10 . Terminals 7 | . 7 . Fabricators . | . . . Repair Stations 1 | . 1 . Recycling Units 2 | . 2 . Scanalyzers . | . . . Garrison Access . | . . . Total Hacks 23 | . 23 . Successful 13 | . 13 . Failed 10 | . 10 . Catastrophic 2 | . 2 . Database Lockouts . | . . . Manual 21 | . 21 . Terminals 19 | . 19 . Fabricators . | . . . Repair Stations 2 | . 2 . Recycling Units 2 | . 2 . Scanalyzers . | . . . Garrison Access . | . . . Terminal Hacks 3 | . 3 . Part Schematic 1 | . 1 . Robot Schematic 1 | . 1 . Terminal Index 1 | . 1 . Fabricator Hacks . | . . . Repair Station Hacks 2 | . 2 . Scan Component 1 | . 1 . Repair 1 | . 1 . Recycling Unit Hacks . | . . . Scanalyzer . | . . . Garrison Access Hacks . | . . . Unauthorized Hacks 8 | . 8 . Terminals 6 | . 6 . Botnet 1 | . 1 . Skim 5 | . 5 . Fabricators . | . . . Repair Stations . | . . . Recycling Units 2 | . 2 . Tunnel 2 | . 2 . Scanalyzers . | . . . Garrison Access . | . . . Data Cores Recovered 1 | . 1 . Used . | . . . Hacking Detections 8 | . 8 . Full Trace Events 2 | . 2 . Feedback Events . | . . . Feedback Blocked . | . . . Robot Schematics Acquired 1 | . 1 . Robots Built . | . . . Authchips . | . . . Time . | . . . Total Robot Build Rating . | . . . Part Schematics Acquired 1 | . 1 . Parts Built . | . . . Authchips . | . . . Time . | . . . Total Part Build Rating . | . . . Part Studies Acquired . | . . . Parts Repaired 1 | . 1 . Time 32 | . 32 . Parts Recycled . | . . . Recycled Matter . | . . . Retrieved Matter . | . . . Retrieved Components . | . . . Parts Scanalyzed . | . . . Part Schematics Acquired . | . . . Parts Damaged . | . . . Bothacking | -11 -10 -10 ------------ Run | Yrd Mat Min Used RIF Installer . | . . . Robots Hacked . | . . . Non-combat . | . . . Combat . | . . . Robot Hacks Applied . | . . . Relay Couplers Released . | . . . Fabnet Peak Effective % . | . . . Robots Rewired . | . . . Allies Hacked . | . . . Hacks Repelled . | . . . Allies | -11 -10 -10 -------- Run | Yrd Mat Min Total Allies 1 | . . 1 Largest Group . | . . . Highest-Rated Group . | . . . Highest-Rated Ally . | . . . Total Orders . | . . . Ally Attacks 1 | . . 1 Total Damage . | . . . Kills . | . . . Allies Corrupted . | . . . Allies Melted . | . . . Intel | -11 -10 -10 ------- Run | Yrd Mat Min Active Infowar (turns) 1579 | 22 1184 373 Seismic 1579 | 22 1184 373 Robot Analysis Total . | . . . Derelict Logs Recovered . | . . . Drone Launches . | . . . Drone Recoveries . | . . . Exploration | -11 -10 -10 ------------- Run | Yrd Mat Min Turns Passed 1749 | 124 1252 373 Spaces Moved 875 | 60 595 220 Core 2 | 2 . . Treads 873 | 58 595 220 Legs . | . . . Wheels . | . . . Hover . | . . . Flight . | . . . Fastest Speed 50 | 50 160 160 Average Speed 159 | 156 160 160 Slowest Speed 240 | 160 160 240 Overloaded Moves . | . . . Propulsion Burnouts . | . . . Robots Hopped . | . . . Potential Cave-ins . | . . . Cave-ins Triggered . | . . . Exploration Rate (%) 54 | 5 96 62 Regions Visited 2 Branch Regions 1 Pre-discovered Areas 2 | . 2 . Known Exits Taken 1 | . 1 . Unknown Exits Taken 1 | 1 . . Scrap Searched . | . . . Spaces Dug . | . . . Terrain Destroyed . | . . . Melee . | . . . Projectile . | . . . AOE . | . . . Terrain Rammed . | . . . Walls Destroyed . | . . . Machines Disabled . | . . . Actions | -11 -10 -10 --------- Run | Yrd Mat Min Total 1098 | 78 785 235 Wait 96 | 6 85 5 Move 873 | 59 594 220 Hop . | . . . Pick Up 21 | 1 18 2 Fast Attach 8 | 7 1 . Attach 2 | . 2 . Detach . | . . . Swap 16 | . 15 1 Drop 13 | . 10 3 Fire 65 | 5 57 3 Melee . | . . . Ram . | . . . Kick . | . . . Crush 4 | . 3 1 Escape Stasis . | . . . Rewire . | . . . Trap . | . . . Miscellaneous . | . . . Route ------- -11/Scrapyard -10/Materials (discovered 5 exits: *Mat x3 / *Min / Sub) -10/Mines (discovered 3 exits: *Mat x2 / Exi) History --------- Turn | Location | Event 13 | -11/Scrapyard | Discovered new exit (range 15) 125 | -11/Scrapyard | Entered Materials 341 | -10/Materials | Build established: Mutant 451 | -10/Materials | Discovered new exit (range 11) 710 | -10/Materials | Discovered new exit (range 12) 998 | -10/Materials | Discovered new exit (range 4) 1218 | -10/Materials | Learned location of 1 exit from Storage 1246 | -10/Materials | Learned 4 Recycling zone layouts 1262 | -10/Materials | Learned 2 Storage zone layouts 1266 | -10/Materials | Learned location of 2 exits from Mines 1292 | -10/Materials | Identified exit to Mines 1292 | -10/Materials | Identified exit to Subcaves 1303 | -10/Materials | Repaired Imp. Treads 1321 | -10/Materials | Learned 4 Subcaves zone layouts 1377 | -10/Materials | Entered Mines 1378 | -10/Mines | Identified exit to Materials 1378 | -10/Mines | Identified exit to Exiles 1509 | -10/Mines | Received a Rocket Launcher from a helpful Derelict 1600 | -10/Mines | Discovered exit to Materials (range 11) 1638 | -10/Mines | Found a damaged Exp. Sensor Array with a note attached 1642 | -10/Mines | Found Prototype Device 1695 | -10/Mines | Assembled infested the area 1728 | -10/Mines | Received a Mining Laser from a helpful Derelict 1737 | -10/Mines | Core integrity fell below 50% 1741 | -10/Mines | Core integrity fell below 20% 1750 | -10/Mines | Destroyed by D-53 Grenadier with Mini Grenade Launcher Last Messages --------------- top of us... With this we can! Deliver it to Megawrench for repairs then we'll never be afraid of an ambush while sneaking around Materials again, ha." 01642_ Dropped Med. Storage Unit. 01642_ Acquired Prototype Device. 01685_ Slammed into K-01 Serf. 01695_ ALERT: Infestation in the mines, dispatching Demolisher response squad. 01726_ A derelict emerges from the shadows: "What are you doing alone down here?" 01728_ AY-MUD(g): "And why aren't you carrying a mining laser?! Certainly you don't want THEM to uncover you when the ceiling comes crashing down? Here, take my spare." 01731_ AY-MUD(g): "You're apparently new around these parts, I'll cover you." 01738_ Beam Rifle destroyed. 01739_ The unstable cave ceiling collapses. 01745_ Imp. Treads destroyed. 01747_ Beam Rifle destroyed. 01748_ The unstable cave ceiling collapses. Map ----- +----------------------------------------------------+ | #???????????????????????????????????????? | | #???????????????????????????????????????? | | #???????????????????????????????????????? | | #???????????????????????????????????????? | | #?????????????????????????????###???????? | | #????????????????????????????? #???????? | | #????????????????????????????# $#???????? | | ##????????????????????????????#$ #???????? | | #??????????????????????????#### #???????? | | #?????????????????????????## # ##??????? | | #?????????????????????????# ##?????? | | ##???????????????????????? #?????? | | ##?????????????????????### #?????? | | ####??????????????????# %d #?????? | | ##?????????????????# # ##?????? | | " #?????????????????#d # #?????? | | " ##????????????????## # #??????? | | " ##?????????????????# # #??????? | | #?????????????????## ##?????? | | ##????????????????## #?????? | | ##?????????????????# #?????? | | ##??????????????????# # ##?????? | | ##???????????????????# # ##??????? | | ????????????????????## ###???????? | | ????????????????????# # ##?????????? | | ????????????????????## @ ###??????????? | | ???????????????????### # #####???????? | | ???????####???????## #???????? | | ??????## ###?????# ##### #???????? | | ?????## ###???# #???# #???????? | | ?????# ##??## #???# #???????? | | ?????# #???## #???# ???????? | | ????## #????# ##???###???????? | | ??### #?????#! ##??????????????? | | ?## #?????# #???????????????? | | ?# ##????## #???????????????? | | ?# #?????### #???????????????? | | ?# ##??????# #####???????????? | | ### ##?????# #???????????? | | ##### ## #?????##### #???????????? | | ##?## #### #?????????# #???????????? | | #### #??# ##?????##### ##??????????? | | ## #??# #??????# #??????????? | | ##??# #??????# #??????????? | | #???# ######## ## #???????? | | # #???# #???>???? | | # ## ##???########### < ####???????? | | # ####??????????????# #??????????? | | # #?????????????????########??????????? | | # #???????????????????????????????????? | +----------------------------------------------------+ Best States ------------- Heat Dissipation 35 Energy Generation 10 Energy Capacity 250 Matter Stores 300 Matter Capacity 300 Sight Range 16 Terrain Scan Density 10 Evasion (%) 40 Recoil Reduction 2 Item Schematics ----------------- Hcp. Storage Unit | -10/Materials | Hacked Robot Schematics ------------------ M-13 Machinist | -10/Materials | Hacked Fabricated ------------ Nothing Repaired ---------- Imp. Treads | 15% | -10/Materials Studied --------- None Alien Tech Used ----------------- None Achievements -------------- None Challenges ------------ None Game ------ Seed ThrusterGodBlade Manual? 0 Play Time 00:13:36 Cumulative 248.7 hours Start 2026.02.07 @ 10:06:17 End 2026.02.07 @ 10:17:36 Sessions 1 Manual Loads 0 Difficulty Rogue Special Mode None Game No. 104 Rogue 99 Adventurer 5 Explorer 0 Win Type - Total 7 Types 3/0/2/1/0/0/0/0/0/1 Lore% 70 Gallery% 72 Achievement% 61 Wizard Run 0 Options --------- Layout 0 ASCII 0 Keyboard 0 Movement Numpad Keybinds 0 Fullscreen 1 Font 18/SmallcapsGlow Map View 76x50 Zoom Use 0% Tactical HUD 1 Map Filters NONE Filters NONE Steam 1 RUN: ee646e08-2928-4dcb-a188-cbd058632081